fUSD/lending_fUSD_20240513
["ID","MTS","AMOUNT","RATE_DAILY","PERIOD"]
[326910250,1715560240704,-500.0,0.00012899,2]
[326910251,1715560240714,-500.0,0.00012899,2]
[326910252,1715560240723,-500.0,0.00012899,2]
[326910253,1715560240735,-517.22,0.00012899,2]
[326910254,1715560240744,-517.22,0.00012899,2]
[326910255,1715560240754,-517.22,0.00012899,2]
[326910256,1715560240764,-892175.63706631,0.000129,2]
[326910257,1715560240775,-432.63723474,0.000129,2]
[326910258,1715560240784,-3000.0,0.000129,2]
[326910259,1715560240794,-332.4280747,0.000129,2]
[326910260,1715560240804,-500.0,0.00012906,2]
[326910261,1715560240813,-500.0,0.00012969,2]
[326910262,1715560240823,-517.22,0.00012969,2]
[326910263,1715560240833,-151.63,0.0001297,2]
[326910264,1715560240842,-151.63,0.0001297,2]
[326910265,1715560240852,-151.63,0.0001297,2]
[326910266,1715560240862,-151.63,0.0001297,2]
[326910267,1715560240871,-151.63,0.0001297,2]
[326910268,1715560240881,-151.63,0.0001297,2]
[326910269,1715560240890,-151.63,0.0001297,2]
[326910270,1715560240899,-151.63,0.0001297,2]
[326910271,1715560240909,-151.63,0.0001297,2]
[326910272,1715560240918,-151.63,0.0001297,2]
[326910273,1715560240928,-151.63,0.0001297,2]
[326910274,1715560240938,-151.63,0.0001297,2]
[326910275,1715560240948,-151.63,0.0001297,2]
[326910276,1715560240958,-151.63,0.0001297,2]
[326910277,1715560240968,-151.63,0.0001297,2]
[326910278,1715560240978,-151.63,0.0001297,2]
[326910279,1715560240988,-151.63,0.0001297,2]
[326910280,1715560240998,-151.63,0.0001297,2]
[326910281,1715560241008,-151.63,0.0001297,2]
[326910282,1715560241018,-151.63,0.0001297,2]
[326910283,1715560241028,-151.63,0.0001297,2]
[326910284,1715560241037,-151.63,0.0001297,2]
[326910285,1715560241047,-151.63,0.0001297,2]
[326910286,1715560241058,-151.63,0.0001297,2]
[326910287,1715560241068,-151.63,0.0001297,2]
[326910288,1715560241077,-151.63,0.0001297,2]
[326910289,1715560241087,-151.63,0.0001297,2]
[326910290,1715560241097,-151.63,0.0001297,2]
[326910291,1715560241107,-151.63,0.0001297,2]
[326910292,1715560241118,-151.63,0.0001297,2]
[326910293,1715560241129,-151.63,0.0001297,2]
[326910294,1715560241139,-151.63,0.0001297,2]
[326910295,1715560241151,-151.63,0.0001297,2]
[326910296,1715560241161,-151.63,0.0001297,2]
[326910297,1715560241172,-151.63,0.0001297,2]
[326910298,1715560241182,-151.63,0.0001297,2]
[326910299,1715560241191,-151.63,0.0001297,2]
[326910300,1715560241203,-151.63,0.0001297,2]
[326910301,1715560241213,-184.44737748,0.0001297,2]
[326910302,1715560241224,-1037.98964315,0.00012979,3]
[326910303,1715560241234,-4119.19928136,0.00012979,2]
[326910304,1715560241243,-1180.22848729,0.00012979,2]
[326910305,1715560241253,-596.38,0.00012979,2]
[326910306,1715560241263,-596.38,0.00012979,2]
[326910307,1715560241272,-596.38,0.00012979,2]
[326910308,1715560241281,-596.38,0.00012979,2]
[326910309,1715560241291,-596.38,0.00012979,2]
[326910310,1715560241300,-596.38,0.00012979,2]
[326910311,1715560241309,-596.38,0.00012979,2]
[326910312,1715560241318,-596.38,0.00012979,2]
[326910313,1715560241327,-596.38,0.00012979,2]
[326910314,1715560241336,-596.38,0.00012979,2]
[326910315,1715560241346,-596.38,0.00012979,2]
[326910316,1715560241355,-596.51902533,0.00012979,2]
[326910317,1715560241364,-860.36,0.00012979,2]
[326910318,1715560241374,-860.36,0.00012979,2]
[326910319,1715560241383,-860.36,0.00012979,2]
[326910320,1715560241392,-860.36,0.00012979,2]
[326910321,1715560241402,-860.36,0.00012979,2]
[326910322,1715560241411,-860.36,0.00012979,2]
[326910323,1715560241420,-860.36,0.00012979,2]
[326910324,1715560241429,-860.36,0.00012979,2]
[326910325,1715560241438,-860.36,0.00012979,2]
[326910326,1715560241449,-860.36,0.00012979,2]
[326910327,1715560241458,-860.36,0.00012979,2]
[326910328,1715560241468,-860.5014731,0.00012979,2]
[326910329,1715560241477,-500.0,0.00012979,2]
[326910330,1715560241486,-500.0,0.00012979,2]
[326910331,1715560241496,-500.0,0.00012979,2]
[326910332,1715560241505,-500.0,0.00012979,2]
[326910333,1715560241514,-500.0,0.00012979,2]
[326910334,1715560241523,-500.0,0.00012979,2]
[326910335,1715560241532,-500.0,0.00012979,2]
[326910336,1715560241542,-500.0,0.00012979,2]
[326910337,1715560241551,-500.0,0.00012979,2]
[326910338,1715560241561,-500.0,0.00012979,2]
[326910339,1715560241570,-500.0,0.00012979,2]
[326910340,1715560241579,-500.0,0.00012979,2]
[326910341,1715560241589,-292.15604012,0.00012979,2]
[326910342,1715560241601,-500.0,0.00012979,2]
[326910343,1715560241611,-500.0,0.00012979,2]
[326910344,1715560241621,-500.0,0.00012979,2]
[326910345,1715560241631,-500.0,0.00012979,2]
[326910346,1715560241641,-500.0,0.00012979,2]
[326910347,1715560241651,-500.0,0.00012979,2]
[326910348,1715560241662,-500.0,0.00012979,2]
[326910349,1715560241671,-500.0,0.00012979,2]
[326910350,1715560241680,-500.0,0.00012979,2]
[326910351,1715560241690,-500.0,0.00012979,2]
[326910352,1715560241700,-500.0,0.00012979,2]
[326910353,1715560241710,-546.21384569,0.00012979,2]
[326910354,1715560241719,-501.92809598,0.00012979,2]
[326910355,1715560241728,-517.22,0.00012979,2]
[326910356,1715560241738,-517.22,0.00012979,2]
[326910357,1715560241747,-517.22,0.00012979,2]
[326910358,1715560241757,-517.22,0.00012979,2]
[326910359,1715560241767,-517.22,0.00012979,2]
[326910360,1715560241776,-517.22,0.00012979,2]
[326910361,1715560241786,-517.22,0.00012979,2]
[326910362,1715560241795,-517.22,0.00012979,2]
[326910363,1715560241805,-517.22,0.00012979,2]
[326910364,1715560241815,-517.22,0.00012979,2]
[326910365,1715560241824,-517.22,0.00012979,2]
[326910366,1715560241834,-517.22,0.00012979,2]
[326910367,1715560241844,-517.22,0.00012979,2]
[326910368,1715560241853,-517.22,0.00012979,2]
[326910369,1715560241863,-517.4094424,0.00012979,2]
[326910370,1715560241872,-216590.42674186,0.0001298,2]
[326910371,1715560241881,-4428493.95528191,0.0001298,2]
[326910375,1715560242817,-641.85355337,0.0001298,2]
[326910376,1715560242828,-1580.93194554,0.0001298,2]
[326910377,1715560242840,-468.91412596,0.0001298,2]
[326910378,1715560242851,-654.24422467,0.0001298,2]
[326910379,1715560242862,-1418.28480269,0.0001298,2]
[326910380,1715560242873,-56998.77644343,0.0001298,2]
[326910381,1715560242884,-23961.73465755,0.0001298,2]
[326910383,1715560242895,-1006.632,0.0001298,2]
[326910400,1715560243135,-292.43380632,0.0001247,2]
[326910401,1715560243145,-234.39828041,0.0001298,2]
[326910402,1715560243207,-2069.32448801,0.0001298,2]
[326910403,1715560243218,-324.01964644,0.0001298,2]
[326910404,1715560243290,-7500.0,0.0001298,2]
[326910405,1715560243364,-792.16022245,0.0001298,2]
[326910406,1715560243376,-328.04999985,0.0001298,2]
[326910407,1715560243388,-2013.4999997,0.0001298,2]
[326910408,1715560246389,-332.42807467,0.000129,2]
[326910409,1715560246399,-590.11424364,0.00012979,2]
[326910410,1715560246409,-5000.0,0.00012979,2]
[326910411,1715560246418,-206.3961768,0.0001298,2]
[326910412,1715560246469,-1546.8745,0.0001298,2]
[326910419,1715560893299,6037.48446613,0.0001,2]
[326910421,1715560939397,499.0,0.00025,120]
[326910424,1715561333958,266.51338712,0.00010007,2]
[326910430,1715561359807,155.0,0.00010007,2]
[326910432,1715561375807,155.18883555,0.00010007,2]
[326910433,1715561422155,156.95680701,0.00010008,2]
[326910446,1715561432284,-155.0,0.00010104,2]
[326910447,1715561432293,-251.13838012,0.00010107,2]
[326910448,1715561432304,-237.31709547,0.00010107,2]
[326910449,1715561432314,-216.19290453,0.00010108,2]
[326910450,1715561432401,-4523.18971579,0.00010108,2]
[326910451,1715561432412,-2687.81028421,0.00010109,2]
[326910452,1715561432424,-277.94262863,0.00010109,2]
[326910453,1715561432437,-414.95236416,0.00010109,2]
[326910454,1715561432466,-196.050223,0.00010109,2]
[326910455,1715561432475,-250.0,0.00011005,2]
[326910456,1715561432485,-53.949777,0.00011005,2]
[326910457,1715561432500,-608.79,0.00011005,2]
[326910458,1715561432512,-361.15,0.00011005,2]
[326910477,1715561438284,-155.0,0.00010106,2]
[326910480,1715561438294,-3215.01740563,0.00011005,2]
[326910482,1715561438306,-627.28584509,0.00011005,2]
[326910484,1715561438317,-311.75649,0.00011005,2]
[326910486,1715561438329,-305.6953608,0.00011005,2]
[326910487,1715561438340,-15656.75512148,0.00011005,2]
[326910488,1715561438350,-250.0,0.0001101,2]
[326910489,1715561438359,-168.38,0.0001101,2]
[326910490,1715561438368,-306.51,0.00011081,2]
[326910491,1715561438377,-3561.85,0.00011116,2]
[326910492,1715561438387,-165.02,0.00011146,2]
[326910493,1715561438396,-153.86,0.00011162,2]
[326910494,1715561438405,-854.07,0.00011162,2]
[326910495,1715561438414,-153.09,0.00011308,2]
[326910496,1715561438423,-153.86,0.00011356,2]
[326910497,1715561438433,-153.86,0.0001155,2]
[326910498,1715561438443,-693.49,0.00011555,2]
[326910499,1715561438453,-261.66,0.00011615,2]
[326910500,1715561438462,-153.86,0.00011743,2]
[326910501,1715561438472,-10000.0,0.00011914,2]
[326910502,1715561438481,-167.75,0.00011935,2]
[326910503,1715561438490,-19618.93418788,0.00012,2]
[326910504,1715561438499,-1580.21335922,0.00012,2]
[326910505,1715561438509,-5000.0,0.00012037,2]
[326910506,1715561438519,-30082.21745136,0.00012047,2]
[326910507,1715561438528,-7500.0,0.00012058,2]
[326910508,1715561438537,-1000.0,0.00012058,2]
[326910509,1715561438546,-282.95529416,0.00012059,2]
[326910510,1715561438555,-427.52379173,0.00012059,2]
[326910511,1715561438564,-188.03404075,0.00012145,2]
[326910512,1715561438574,-165.62,0.00012145,2]
[326910513,1715561438584,-165.62,0.00012145,2]
[326910514,1715561438594,-165.62,0.00012149,2]
[326910515,1715561438603,-300.0,0.00012154,2]
[326910516,1715561438612,-655039.99913734,0.00012155,2]
[326910517,1715561438624,-32750.46835818,0.00012155,2]
[326910518,1715561438633,-300.15616727,0.00012156,2]
[326910519,1715561438642,-368.13490165,0.00012156,2]
[326910520,1715561438652,-155.0,0.00012156,2]
[326910521,1715561438660,-155.0,0.00012156,2]
[326910522,1715561438670,-161.80076929,0.00012156,2]
[326910523,1715561438679,-235.19465005,0.00012156,2]
[326910524,1715561438688,-206.72782476,0.00012156,2]
[326910525,1715561438698,-275.56606053,0.00012156,2]
[326910526,1715561438707,-248.485701,0.00012156,2]
[326910528,1715561438716,-248.35796841,0.00012156,2]
[326910529,1715561438725,-351.49192502,0.00012156,2]
[326910530,1715561438735,-2219.88737187,0.00012156,2]
[326910531,1715561438744,-1011.42604063,0.00012156,2]
[326910532,1715561438753,-3658.63465762,0.00012156,2]
[326910533,1715561438762,-12362.636667,0.00012156,2]
[326910534,1715561438771,-4411.09951454,0.00012156,2]
[326910535,1715561438780,-1212.7569798,0.00012156,2]
[326910536,1715561438790,-217.06896693,0.00012156,2]
[326910537,1715561438798,-155.0,0.00012156,2]
[326910538,1715561438807,-403.90185984,0.00012156,2]
[326910539,1715561438816,-155.0,0.00012156,2]
[326910540,1715561438826,-3082.73013439,0.00012156,2]
[326910541,1715561438835,-873.81182588,0.00012156,2]
[326910542,1715561438845,-3083.76487824,0.00012156,2]
[326910543,1715561438854,-3460.699384,0.00012157,2]
[326910544,1715561438864,-467.25285607,0.00012159,2]
[326910545,1715561438875,-158273.14064393,0.00012159,2]
[326910546,1715561438885,-171.57,0.00012185,2]
[326910547,1715561438894,-181.79427857,0.00012205,2]
[326910548,1715561438903,-177.10224628,0.00012205,2]
[326910549,1715561438912,-46145.34265292,0.0001228,2]
[326910550,1715561438921,-3460.699384,0.00012309,2]
[326910551,1715561438930,-173.35407154,0.00012325,2]
[326910552,1715561438939,-798.28809431,0.00012328,2]
[326910553,1715561438951,-7488.36901614,0.00012361,2]
[326910554,1715561438960,-7488.36901604,0.0001241,2]
[326910555,1715561438970,-2226.0653,0.00012425,2]
[326910556,1715561438979,-100000.0,0.00012425,2]
[326910557,1715561438988,-1000.0,0.00012425,2]
[326910558,1715561438997,-7488.36901604,0.00012459,2]
[326910559,1715561439007,-3460.699384,0.00012461,2]
[326910560,1715561439016,-306.51,0.00012466,2]
[326910561,1715561439026,-7488.36901604,0.00012508,2]
[326910562,1715561439035,-1407.009,0.00012526,2]
[326910563,1715561439045,-2157.0,0.00012526,2]
[326910564,1715561439055,-973.0,0.00012526,2]
[326910565,1715561439065,-543.0,0.00012526,2]
[326910566,1715561439075,-1789.0,0.00012526,2]
[326910567,1715561439084,-1225.0,0.00012526,2]
[326910568,1715561439094,-1261.0,0.00012526,2]
[326910569,1715561439104,-612.0,0.00012526,2]
[326910570,1715561439113,-422.0,0.00012526,2]
[326910571,1715561439123,-811.712,0.00012526,2]
[326910572,1715561439132,-164.0,0.00012526,2]
[326910573,1715561439142,-438.0,0.00012526,2]
[326910574,1715561439151,-151.408,0.00012526,2]
[326910575,1715561439161,-1646.0,0.00012526,2]
[326910576,1715561439171,-151.127,0.00012526,2]
[326910577,1715561439185,-2504.497,0.00012526,2]
[326910578,1715561439194,-444.0,0.00012526,2]
[326910579,1715561439205,-1138.0,0.00012526,2]
[326910580,1715561439215,-215.0,0.00012526,2]
[326910581,1715561439226,-3156.0,0.00012526,2]
[326910582,1715561439236,-5911.0,0.00012526,2]
[326910583,1715561439245,-288.0,0.00012526,2]
[326910584,1715561439254,-37831.0,0.00012526,2]
[326910585,1715561439267,-150.0,0.00012526,2]
[326910586,1715561439276,-5749.0,0.00012526,2]
[326910587,1715561439286,-1463.0,0.00012526,2]
[326910588,1715561439295,-3635.054,0.00012526,2]
[326910589,1715561439306,-3674.448,0.00012526,2]
[326910590,1715561439316,-3619.831,0.00012526,2]
[326910591,1715561439325,-7488.36901604,0.00012557,2]
[326910592,1715561439334,-500.0,0.00012563,2]
[326910593,1715561439344,-500.0,0.00012572,2]
[326910594,1715561439354,-500.0,0.0001258,2]
[326910595,1715561439365,-500.0,0.00012589,2]
[326910596,1715561439374,-500.0,0.00012598,2]
[326910597,1715561439384,-150.0,0.00012604,2]
[326910598,1715561439393,-7488.36901604,0.00012606,2]
[326910599,1715561439403,-500.0,0.00012607,2]
[326910600,1715561439412,-3460.699384,0.00012613,2]
[326910601,1715561439421,-500.0,0.00012616,2]
[326910602,1715561439431,-500.0,0.00012624,2]
[326910603,1715561439440,-500.0,0.00012633,2]
[326910604,1715561439450,-500.0,0.00012642,2]
[326910605,1715561439460,-500.0,0.00012651,2]
[326910606,1715561439469,-7488.36901604,0.00012655,2]
[326910607,1715561439478,-500.0,0.0001266,2]
[326910608,1715561439487,-500.0,0.00012668,2]
[326910609,1715561439497,-500.0,0.00012677,2]
[326910610,1715561439506,-500.0,0.00012686,2]
[326910611,1715561439515,-500.0,0.00012695,2]
[326910612,1715561439525,-500.0,0.00012704,2]
[326910613,1715561439534,-7488.36901604,0.00012704,2]
[326910614,1715561439543,-500.0,0.00012712,2]
[326910615,1715561439553,-500.0,0.00012721,2]
[326910616,1715561439562,-150.0,0.00012728,2]
[326910617,1715561439571,-500.0,0.0001273,2]
[326910618,1715561439580,-150.0,0.00012732,2]
[326910619,1715561439589,-500.0,0.00012739,2]
[326910620,1715561439598,-300.0,0.00012739,2]
[326910621,1715561439608,-150.0,0.00012743,2]
[326910622,1715561439617,-150.0,0.00012744,2]
[326910623,1715561439627,-301.62969075,0.00012746,2]
[326910624,1715561439636,-500.0,0.00012748,2]
[326910625,1715561439645,-165.62,0.00012751,2]
[326910626,1715561439655,-1500.0,0.00012752,2]
[326910627,1715561439665,-7488.36901604,0.00012753,2]
[326910628,1715561439674,-500.0,0.00012756,2]
[326910629,1715561439683,-1500.0,0.00012761,2]
[326910630,1715561439693,-3460.699384,0.00012765,2]
[326910631,1715561439703,-500.0,0.00012765,2]
[326910632,1715561439712,-150.0,0.00012768,2]
[326910633,1715561439722,-150.0,0.00012768,2]
[326910634,1715561439733,-3500.94133622,0.0001277,2]
[326910635,1715561439743,-500.0,0.00012774,2]
[326910636,1715561439753,-150.0,0.00012774,2]
[326910637,1715561439762,-150.0,0.00012779,2]
[326910638,1715561439772,-500.0,0.00012783,2]
[326910639,1715561439781,-1500.0,0.00012793,2]
[326910640,1715561439790,-7488.36901604,0.00012802,2]
[326910641,1715561439799,-1500.0,0.0001281,2]
[326910642,1715561439809,-150.0,0.00012812,2]
[326910643,1715561439819,-150.0,0.00012813,2]
[326910644,1715561439828,-150.0,0.00012837,2]
[326910645,1715561439837,-150.0,0.00012841,2]
[326910646,1715561439846,-200.0,0.0001285,2]
[326910647,1715561439856,-561.19089378,0.0001285,2]
[326910648,1715561439865,-7488.36901604,0.00012851,2]
[326910649,1715561439876,-150.0,0.00012851,2]
[326910650,1715561439885,-502.0,0.00012853,2]
[326910651,1715561439894,-8128.94812348,0.0001286,2]
[326910652,1715561439903,-150.0,0.0001287,2]
[326910653,1715561439913,-737.51675808,0.00012871,2]
[326910654,1715561439922,-150.0,0.00012873,2]
[326910655,1715561439932,-150.0,0.00012873,2]
[326910656,1715561439941,-737.51675806,0.00012876,2]
[326910657,1715561439951,-540.92,0.00012876,2]
[326910658,1715561439960,-540.92,0.00012876,2]
[326910659,1715561439970,-540.92,0.00012876,2]
[326910660,1715561439979,-540.92,0.00012876,2]
[326910661,1715561439989,-540.92,0.00012876,2]
[326910662,1715561439999,-451.25058178,0.00012876,2]
[326910663,1715561440009,-1000.0,0.00012876,2]
[326910664,1715561440019,-800.0,0.00012877,2]
[326910665,1715561440028,-150.0,0.00012878,2]
[326910666,1715561440038,-1000.0,0.0001288,2]
[326910667,1715561440047,-500.0,0.0001288,2]
[326910668,1715561440056,-7405.8342,0.0001288,2]
[326910669,1715561440065,-181.79427857,0.0001288,2]
[326910670,1715561440074,-176.66275398,0.0001288,2]
[326910671,1715561440083,-195.01691609,0.0001288,2]
[326910672,1715561440093,-421.72159556,0.0001288,2]
[326910673,1715561440102,-1886.75137162,0.0001288,2]
[326910674,1715561440111,-737.51675806,0.0001288,2]
[326910675,1715561440121,-150.0,0.00012883,2]
[326910676,1715561440131,-150.0,0.00012887,2]
[326910677,1715561440140,-150.0,0.00012888,2]
[326910678,1715561440149,-300.0,0.00012893,2]
[326910683,1715561440354,-540.92,0.00012899,2]
[326910684,1715561440364,-540.92,0.00012899,2]
[326910685,1715561440373,-540.92,0.00012899,2]
[326910686,1715561440383,-540.92,0.00012899,2]
[326910687,1715561440393,-1500.0,0.00012899,2]
[326910688,1715561440403,-7488.36901604,0.000129,2]
[326910689,1715561440412,-249.32105602,0.000129,2]
[326910690,1715561440421,-249.321056,0.000129,2]
[326910691,1715561440431,-249.321056,0.000129,2]
[326910692,1715561440440,-249.321056,0.000129,2]
[326910693,1715561440450,-249.321056,0.000129,2]
[326910694,1715561440460,-249.321056,0.000129,2]
[326910695,1715561440469,-249.321056,0.000129,2]
[326910696,1715561440479,-249.321056,0.000129,2]
[326910697,1715561440488,-150.0,0.00012917,2]
[326910698,1715561440498,-1500.0,0.00012924,2]
[326910699,1715561440508,-150.0,0.00012928,2]
[326910700,1715561440518,-167.75,0.00012929,2]
[326910701,1715561440528,-160.0,0.00012931,2]
[326910702,1715561440537,-160.0,0.0001294,2]
[326910703,1715561440547,-150.0,0.00012955,2]
[326910704,1715561440556,-150.0,0.00012955,2]
[326910705,1715561440565,-150.0,0.00012964,2]
[326910706,1715561440574,-165.62,0.0001297,2]
[326910707,1715561440584,-151.58,0.0001297,2]
[326910708,1715561440593,-151.58,0.0001297,2]
[326910709,1715561440603,-151.58,0.0001297,2]
[326910710,1715561440615,-151.58,0.0001297,2]
[326910711,1715561440624,-151.58,0.0001297,2]
[326910712,1715561440634,-151.58,0.0001297,2]
[326910713,1715561440643,-151.58,0.0001297,2]
[326910714,1715561440653,-165.62,0.0001297,2]
[326910715,1715561440663,-37395.0081408,0.00012971,2]
[326910716,1715561440672,-28299.2075275,0.00012971,2]
[326910717,1715561440681,-19203.4069142,0.00012971,2]
[326910718,1715561440692,-10107.6063009,0.00012971,2]
[326910719,1715561440702,-1011.8056876,0.00012971,2]
[326910720,1715561440712,-1136.3250366,0.00012971,2]
[326910721,1715561440721,-1136.3250366,0.00012971,2]
[326910722,1715561440730,-1136.3250366,0.00012971,2]
[326910723,1715561440741,-1136.3250366,0.00012971,2]
[326910724,1715561440750,-1136.3250366,0.00012971,2]
[326910725,1715561440760,-5691.2983395,0.00012971,2]
[326910726,1715561440769,-4308.2578686,0.00012971,2]
[326910727,1715561440779,-2925.2173977,0.00012971,2]
[326910728,1715561440788,-1542.1769267,0.00012971,2]
[326910729,1715561440798,-159.1364558,0.00012971,2]
[326910730,1715561440808,-1252.4493289,0.00012971,2]
[326910731,1715561440817,-1252.4493289,0.00012971,2]
[326910732,1715561440827,-1252.4493289,0.00012971,2]
[326910733,1715561440836,-1252.4493289,0.00012971,2]
[326910734,1715561440846,-1252.4493289,0.00012971,2]
[326910735,1715561440855,-2834.1168244,0.00012971,2]
[326910736,1715561440864,-3594.3539172,0.00012971,2]
[326910737,1715561440873,-4354.5910101,0.00012971,2]
[326910738,1715561440882,-5114.8281029,0.00012971,2]
[326910739,1715561440892,-5875.0651958,0.00012971,2]
[326910740,1715561440902,-46490.8087541,0.00012974,2]
[326910741,1715561440912,-1136.3250366,0.00012974,2]
[326910742,1715561440922,-7074.3388104,0.00012974,2]
[326910743,1715561440932,-1252.4493289,0.00012974,2]
[326910744,1715561440942,-2073.8797315,0.00012974,2]
[326910745,1715561440953,-702.49396764,0.00012977,2]
[326910746,1715561440963,-3024.88433628,0.00012977,2]
[326910747,1715561440973,-240.9133084,0.00012977,2]
[326910748,1715561440983,-3078.76371322,0.00012977,2]
[326910749,1715561440994,-159.77636607,0.00012977,2]
[326910750,1715561441004,-666.2698731,0.00012978,2]
[326910751,1715561441013,-21393.94424312,0.00012979,2]
[326910752,1715561441023,-540.92,0.00012979,2]
[326910753,1715561441032,-540.92,0.00012979,2]
[326910754,1715561441041,-540.92,0.00012979,2]
[326910755,1715561441050,-540.92,0.00012979,2]
[326910756,1715561441059,-540.92,0.00012979,2]
[326910758,1715561441068,-540.92,0.00012979,2]
[326910759,1715561441077,-540.92,0.00012979,2]
[326910762,1715561441087,-540.92,0.00012979,2]
[326910763,1715561441096,-540.92,0.00012979,2]
[326910765,1715561441105,-540.92,0.00012979,2]
[326910767,1715561441114,-540.92,0.00012979,2]
[326910769,1715561441123,-540.92,0.00012979,2]
[326910770,1715561441132,-540.92,0.00012979,2]
[326910771,1715561441141,-540.92,0.00012979,2]
[326910772,1715561441150,-540.94861238,0.00012979,2]
[326910773,1715561441160,-207.84030149,0.00012979,2]
[326910774,1715561441169,-3226.68432485,0.00012979,2]
[326910775,1715561441179,-235682.55770979,0.0001298,2]
[326910776,1715561441192,-180575.71775492,0.0001298,2]
[326910777,1715561441206,-807945.58222564,0.0001298,2]
[326910778,1715561441227,-128328.10906319,0.0001298,2]
[326910779,1715561442207,-1121.2213578,0.00011914,2]
[326910780,1715561442227,-257.59616578,0.00011914,2]
[326910781,1715561442238,-8136.80152,0.00011914,2]
[326910782,1715561442249,-484.38095642,0.00011914,2]
[326910783,1715561442258,-1165.83101452,0.0001298,2]
[326910784,1715561442278,-150.0,0.00012917,2]
[326910785,1715561442287,-6583.02504383,0.0001298,2]
[326910786,1715561442299,-632.96,0.0001298,2]
[326910805,1715561443481,-2639.96312207,0.0001298,2]
[326910810,1715561443594,-257.54460634,0.0001298,2]
[326910811,1715561443605,-2395.8834861,0.0001298,2]
[326910812,1715561443791,-344.10978337,0.0001298,2]
[326910813,1715561443806,-503.99410468,0.0001298,2]
[326910814,1715561443822,-925.50594997,0.0001298,2]
[326910815,1715561443833,-427.149998,0.0001298,2]
[326910816,1715561443844,-1502.81579274,0.0001298,2]
[326910817,1715561443863,-1187.232,0.0001298,2]
[326910818,1715561443911,-1285.56173917,0.0001298,2]
[326910823,1715561446356,-1059.0,0.00012526,2]
[326910824,1715561446366,-202.996,0.00012526,2]
[326910825,1715561446375,-150.0,0.00012526,2]
[326910826,1715561446384,-1613.34216242,0.00012979,2]
[326910827,1715561446394,-490.6252319,0.00012979,2]
[326910828,1715561446403,-2777.358048,0.0001298,2]
[326910829,1715561446414,-15592.99507342,0.0001298,2]
[326910830,1715561446426,-10626.67261,0.0001298,2]
[326910831,1715561446436,-15244.77312,0.0001298,2]
[326910832,1715561446447,-6128.1,0.0001298,2]
[326910833,1715561446460,-1163.19390968,0.0001298,2]
[326910834,1715561446471,-2089.86470127,0.0001298,2]
[326910835,1715561446486,-14856.69095878,0.0001298,2]
[326910836,1715561446529,-2287.15044994,0.0001298,2]
[326910837,1715561446562,-873.76431563,0.0001298,2]
[326910838,1715561446676,-581.0,0.0001298,2]
[326910844,1715561643950,-150.0,0.00010956,2]
[326910845,1715561643975,-491.85355337,0.00010957,2]
[326910846,1715561646170,150.0,0.00010956,2]
[326910847,1715561646209,150.0,0.00010956,2]
[326910848,1715561646723,-150.0,0.00010956,2]
[326910849,1715561647403,-150.0,0.00010956,2]
[326910850,1715561648443,-55.94713072,0.00010956,2]
[326910851,1715561721536,94.05286928,0.00010956,2]
[326910873,1715562631560,-655.94713072,0.00010756,2]
[326910874,1715562631571,-158.5064266,0.00010757,2]
[326910875,1715562631581,-1234.97414639,0.0001084,2]
[326910876,1715562631594,-259.02589697,0.0001084,2]
[326910877,1715562631607,-931.06995664,0.0001084,2]
[326910878,1715562631617,-622.62683139,0.00010845,2]
[326910879,1715562631646,-193.46316861,0.00010845,2]
[326910880,1715562631656,-150.0,0.00010857,2]
[326910881,1715562631665,-928.77683139,0.00010858,2]
[326910882,1715562631778,-431.18512968,0.00010858,2]